lending/lending_fUSD_20251116
["ID","MTS","AMOUNT","RATE_DAILY","PERIOD"]
[394146008,1763321438369,-4900.0,0.000179,6]
[394146009,1763321438379,-23772.17451349,0.00017914,2]
[394146010,1763321438389,-173.29294005,0.00017952,2]
[394146011,1763321438399,-473.19073425,0.00017952,2]
[394146012,1763321438410,-1671.0,0.00017973,2]
[394146013,1763321438419,-500.54702076,0.00017973,2]
[394146014,1763321438430,-500.0,0.00017973,2]
[394146015,1763321438440,-500.0,0.00017973,2]
[394146016,1763321438450,-500.0,0.00017973,2]
[394146017,1763321438462,-913.73924907,0.0001799,2]
[394146018,1763321438472,-913.73924907,0.0001799,2]
[394146019,1763321438482,-300.0,0.00017999,2]
[394146020,1763321438492,-276.36384412,0.00017999,2]
[394146021,1763321438502,-300.0,0.00017999,2]
[394146022,1763321438512,-3049869.2409283,0.00018,2]
[394146023,1763321438528,-639.88094719,0.00018,2]
[394146026,1763321440363,-1452522.40100839,0.00018,2]
[394146027,1763321440375,-9466.6,0.00018,2]
[394146052,1763321443412,-1113.06762529,0.00016943,2]
[394146054,1763321443421,-93606.1736671,0.00018,2]
[394146056,1763321443434,-11250.0,0.00018,2]
[394146058,1763321443575,-1904.75004,0.00018,2]
[394146089,1763321446324,-74304.56740284,0.00018,2]
[394146090,1763321446434,-9052.08353063,0.00018,2]
[394146091,1763321446495,-217074.87138346,0.00018,2]
[394146092,1763321446505,-23772.17451349,0.00018052,2]
[394146093,1763321446514,-23772.17451349,0.00018191,2]
[394146094,1763321446524,-420.0,0.00018506,2]
[394146095,1763321446534,-500.0,0.00018521,2]
[394146096,1763321446543,-502.62177573,0.00018521,2]
[394146097,1763321446552,-297.01930622,0.00018521,2]
[394146098,1763321446561,-150.41,0.000188,2]
[394146099,1763321446570,-150.41,0.000188,2]
[394146100,1763321446580,-150.41,0.000188,2]
[394146101,1763321446591,-150.41,0.000188,2]
[394146102,1763321446600,-150.41,0.000188,2]
[394146103,1763321446609,-150.41,0.000188,2]
[394146104,1763321446618,-150.41,0.000188,2]
[394146105,1763321446628,-150.41,0.000188,2]
[394146106,1763321446638,-150.41,0.000188,2]
[394146107,1763321446647,-150.41,0.000188,2]
[394146108,1763321446657,-150.41,0.000188,2]
[394146109,1763321446667,-150.41,0.000188,2]
[394146110,1763321446676,-150.41,0.000188,2]
[394146111,1763321446686,-33495.34070498,0.00019,2]
[394146112,1763321446699,-185.15446315,0.00019494,2]
[394146113,1763321446709,-1265.55639731,0.0002,5]
[394146114,1763321446718,-150.99,0.00020145,2]
[394146115,1763321446729,-299.99,0.00020145,7]
[394146116,1763321446738,-587.0,0.00020213,2]
[394146117,1763321446748,-616.22593712,0.00021009,2]
[394146118,1763321446758,-215.39383382,0.00021476,2]
[394146119,1763321446767,-1325.9,0.00021713,2]
[394146120,1763321446776,-150.0,0.00021816,2]
[394146121,1763321446786,-5563.5,0.00021843,2]
[394146122,1763321446796,-500.0,0.00021912,2]
[394146123,1763321446806,-5000.0,0.00021918,2]
[394146124,1763321446816,-1000.0,0.00021999,2]
[394146125,1763321446825,-3430.90196045,0.00022,4]
[394146126,1763321446836,-213.96,0.00022,7]
[394146127,1763321446845,-232.18,0.00022007,2]
[394146128,1763321446855,-185.15446315,0.00022044,2]
[394146129,1763321446865,-823.0,0.00022079,2]
[394146130,1763321446875,-150.0,0.0002209,2]
[394146131,1763321446887,-216.5,0.00022286,2]
[394146132,1763321446897,-250.0,0.00022421,2]
[394146133,1763321446907,-216.5,0.0002256,2]
[394146134,1763321446916,-479.06402154,0.00022656,2]
[394146135,1763321446927,-216.5,0.00022834,2]
[394146137,1763321446936,-216.5,0.00023108,2]
[394146139,1763321446945,-150.0,0.00023123,2]
[394146140,1763321446955,-216.52784937,0.00023382,2]
[394146141,1763321446964,-166.66,0.00023562,30]
[394146142,1763321446973,-999.0,0.00023721,3]
[394146144,1763321446984,-849.79,0.000239,14]
[394146146,1763321446995,-600.0,0.00023927,2]
[394146147,1763321447004,-406.99,0.00023927,2]
[394146148,1763321447013,-160.16,0.00024007,2]
[394146149,1763321447023,-166.66,0.00024058,30]
[394146150,1763321447032,-732.0,0.00024116,2]
[394146151,1763321447041,-166.66,0.00024554,30]
[394146152,1763321447051,-1113.06762527,0.00024558,2]
[394146154,1763321447063,-185.15446315,0.00024595,2]
[394146155,1763321447073,-1000.0,0.000247,2]
[394146156,1763321447086,-405.90836484,0.00024773,2]
[394146157,1763321447096,-501.57452032,0.00024773,2]
[394146158,1763321447106,-300.0,0.00024799,10]
[394146159,1763321447116,-367073.12525314,0.000248,3]
[394146160,1763321447134,-1475.66373794,0.000248,3]
[394146161,1763321447152,-84136.28666024,0.000248,3]
[394146162,1763321447164,-870.20119571,0.000248,3]
[394146163,1763321447175,-5000.0,0.000248,3]
[394146164,1763321447186,-976.82,0.000248,3]
[394146165,1763321447197,-2439.6025378,0.000248,3]
[394146166,1763321447209,-3928.02221488,0.000248,3]
[394146169,1763321999229,630.79,0.00013699,2]
[394146170,1763322182503,150.0,0.00015,2]
[394146171,1763322249340,1287.7,0.00020558,30]
[394146174,1763322328292,500.0,0.00030137,120]
[394146186,1763322555446,150.0,0.00030136,120]
[394146191,1763322631496,-304.41616689,0.000167,2]
[394146192,1763322631507,-189.37202661,0.00016799,2]
[394146193,1763322631518,-300.0,0.00016849,2]
[394146194,1763322631531,-122.9703865,0.00016899,2]
[394146195,1763322631550,-877.88000038,0.00016899,2]
[394146196,1763322631561,-199.14961312,0.00016899,2]
[394146197,1763322631570,-300.0,0.00016899,2]
[394146198,1763322631579,-451.0,0.00016899,2]
[394146199,1763322631589,-300.0,0.00016899,2]
[394146200,1763322631598,-128.04081588,0.00016989,2]
[394146201,1763322631658,-71.95918412,0.00016989,2]
[394146202,1763322631670,-200.0,0.00016989,2]
[394146203,1763322631680,-15.02081588,0.00016989,2]
[394146204,1763322631692,-184.97918412,0.00016989,2]
[394146205,1763322631703,-550.0,0.00016998,2]
[394146206,1763322631713,-497.6171293,0.00016999,2]
[394146207,1763322631723,-500.0,0.00016999,2]
[394146208,1763322631732,-500.0,0.00016999,2]
[394146209,1763322631744,-500.0,0.00016999,2]
[394146210,1763322631754,-500.0,0.00016999,2]
[394146211,1763322631763,-500.0,0.00016999,2]
[394146212,1763322631772,-500.0,0.00016999,2]
[394146213,1763322631783,-500.0,0.00016999,2]
[394146214,1763322631792,-500.0,0.00016999,2]
[394146215,1763322631802,-500.0,0.00016999,2]
[394146216,1763322631991,-500.0,0.00016999,2]
[394146217,1763322632007,-500.0,0.00016999,2]
[394146218,1763322632016,-500.0,0.00016999,2]
[394146219,1763322632026,-576.29816725,0.00016999,2]
[394146220,1763322632035,-500.0,0.00016999,2]
[394146221,1763322632044,-500.0,0.00016999,2]
[394146222,1763322632053,-325.94992155,0.00016999,2]
[394146223,1763322632063,-500.0,0.00016999,2]
[394146224,1763322632072,-500.0,0.00016999,2]
[394146225,1763322632082,-500.0,0.00016999,2]
[394146226,1763322632093,-500.0,0.00016999,2]
[394146227,1763322632102,-101.42132168,0.00016999,2]
[394146228,1763322632116,-398.57867832,0.00016999,2]
[394146229,1763322632125,-500.0,0.00016999,2]
[394146230,1763322632135,-500.0,0.00016999,2]
[394146231,1763322632144,-531.70998207,0.00016999,2]
[394146232,1763322632153,-500.0,0.00016999,2]
[394146233,1763322632164,-502.66991092,0.00016999,2]
[394146234,1763322632173,-500.0,0.00016999,2]
[394146235,1763322632183,-500.0,0.00016999,2]
[394146236,1763322632192,-500.0,0.00016999,2]
[394146237,1763322632201,-366.31333729,0.00016999,2]
[394146238,1763322632212,-287.31,0.00016999,2]
[394146239,1763322632221,-500.0,0.00016999,2]
[394146240,1763322632231,-500.0,0.00016999,2]
[394146241,1763322632240,-176.31303096,0.00016999,2]
[394146242,1763322632250,-500.0,0.00016999,2]
[394146243,1763322632270,-500.0,0.00017218,2]
[394146244,1763322632280,-287.31,0.00017273,2]
[394146245,1763322632290,-200.0,0.00017537,2]
[394146246,1763322632300,-200.0,0.00017537,2]
[394146247,1763322632310,-287.32,0.00017547,2]
[394146248,1763322632320,-500.0,0.00017867,2]
[394146249,1763322632330,-500.0,0.00017867,2]
[394146250,1763322632339,-504.10346457,0.00017988,2]
[394146251,1763322632350,-172.3,0.00018,2]
[394146252,1763322632359,-202.58152099,0.00018085,2]
[394146253,1763322632369,-203.17721759,0.00018085,2]
[394146254,1763322632379,-500.0,0.0001816,2]
[394146255,1763322632389,-302.80487128,0.00018311,2]
[394146256,1763322632399,-420.0,0.00018459,2]
[394146257,1763322632413,-193.70507279,0.00018479,2]
[394146258,1763322632423,-300.0,0.00018479,2]
[394146259,1763322632433,-250.0,0.00018479,2]
[394146260,1763322632442,-151.0,0.00019178,2]
[394146261,1763322632454,-156.587,0.00019726,2]
[394146262,1763322632464,-222.4738,0.00019728,2]
[394146263,1763322632474,-630.79,0.00020187,2]
[394146264,1763322632484,-162.380719,0.00020274,2]
[394146265,1763322632493,-432.10851241,0.00020651,2]
[394146266,1763322632507,-567.89148759,0.00020651,2]
[394146267,1763322632516,-150.0,0.00020665,2]
[394146268,1763322632526,-16933.02,0.0002075,2]
[394146269,1763322632535,-168.3888056,0.00020822,2]
[394146270,1763322632545,-27259.0436,0.00020851,2]
[394146271,1763322632554,-329.65,0.00020951,2]
[394146272,1763322632564,-999.99,0.00020951,2]
[394146273,1763322632574,-1223.88,0.00020951,2]
[394146274,1763322632583,-9999.99,0.00020951,2]
[394146275,1763322632593,-9215.03,0.00020951,5]
[394146276,1763322632603,-4414.85,0.00020951,2]
[394146277,1763322632613,-150.0,0.00021303,2]
[394146278,1763322632623,-6324.66,0.0002137,2]
[394146279,1763322632632,-174.61919141,0.0002137,2]
[394146280,1763322632642,-255.39,0.00021565,2]
[394146281,1763322632652,-600.0,0.00021738,2]
[394146282,1763322632661,-205.59,0.00021738,2]
[394146283,1763322632671,-166.67,0.00021744,2]
[394146284,1763322632680,-181.08010149,0.00021918,2]
[394146285,1763322632690,-2111.99,0.00022337,2]
[394146286,1763322632699,-479.06402154,0.00022399,2]
[394146287,1763322632709,-500.0,0.00022465,2]
[394146288,1763322632719,-500.96983964,0.00022465,2]
[394146289,1763322632728,-187.78006525,0.00022466,2]
[394146290,1763322632738,-500.0,0.00022631,2]
[394146291,1763322632748,-358.93660592,0.00022631,2]
[394146292,1763322632760,-141.06339408,0.00022631,2]
[394146293,1763322632775,-194.72792766,0.00023014,2]
[394146294,1763322632785,-918.62676503,0.00023232,2]
[394146295,1763322632800,-81.37323497,0.00023232,2]
[394146296,1763322632810,-166.67,0.00023538,2]
[394146297,1763322632819,-167.02145463,0.00023562,2]
[394146298,1763322632829,-5505.00167879,0.00024,7]
[394146299,1763322632840,-2572.47759811,0.00024,7]
[394146300,1763322632850,-214.89664467,0.00024229,2]
[394146301,1763322632860,-214.89664468,0.0002451,2]
[394146302,1763322632870,-1048.33512754,0.00024546,2]
[394146303,1763322632881,-555.611992,0.00024546,2]
[394146304,1763322632893,-1843.78418293,0.00024546,2]
[394146305,1763322632903,-3980.56133953,0.00024546,2]
[394146306,1763322632917,-832.22856812,0.00024546,2]
[394146307,1763322633482,157.87,0.00027338,120]
[394146320,1763322637469,-157.87,0.00020504,2]
[394146322,1763322637479,-151.0,0.00020932,2]
[394146324,1763322637490,-157.87,0.00023921,2]
[394146326,1763322637499,-6559.44214317,0.00024546,2]
[394146329,1763322637521,-8786.26626334,0.00024546,2]
[394146332,1763322637531,-913.56016579,0.00024546,2]
[394146334,1763322637540,-780.61,0.00024636,2]
[394146336,1763322637550,-780.61,0.00024636,2]
[394146338,1763322637559,-780.61,0.00024636,2]
[394146339,1763322637569,-278.98000005,0.00024645,2]
[394146340,1763322637578,-23601.5693292,0.00024646,2]
[394146341,1763322637587,-849.632393,0.00024646,2]
[394146342,1763322637597,-1432.1929251,0.00024646,2]
[394146343,1763322637607,-210593.1906751,0.00024646,2]
[394146344,1763322637617,-12865.5872368,0.00024646,2]
[394146345,1763322637628,-45194.4961391,0.00024646,2]
[394146346,1763322637638,-500.0,0.00024673,2]
[394146347,1763322637648,-500.0,0.00024673,2]
[394146348,1763322637659,-503.10398697,0.00024673,2]
[394146349,1763322637669,-418.77046774,0.00024673,2]
[394146350,1763322637681,-500.0,0.00024673,2]
[394146351,1763322637691,-500.0,0.00024673,2]
[394146352,1763322637702,-500.0,0.00024673,2]
[394146353,1763322637711,-500.0,0.00024673,2]
[394146354,1763322637722,-158.54598466,0.00024673,2]
[394146355,1763322637732,-500.0,0.00024673,2]
[394146356,1763322637743,-502.99102467,0.00024673,2]
[394146357,1763322637752,-358.35946228,0.00024673,2]
[394146358,1763322637762,-466.18419703,0.00024673,2]
[394146359,1763322637771,-500.0,0.00024673,2]
[394146360,1763322637781,-500.0,0.00024673,2]
[394146362,1763322637790,-500.0,0.00024673,2]
[394146363,1763322637800,-502.98988778,0.00024673,2]
[394146364,1763322637809,-511.33448116,0.00024673,2]
[394146365,1763322637819,-503.66483378,0.00024673,2]
[394146366,1763322637828,-502.02235994,0.00024673,2]
[394146367,1763322637839,-500.77100973,0.00024673,2]
[394146368,1763322637848,-371.93258312,0.00024673,2]
[394146369,1763322637858,-764.81,0.000247,14]
[394146370,1763322637868,-468.68,0.00024719,2]
[394146371,1763322637878,-466.69974,0.00024773,2]
[394146372,1763322637888,-780.61,0.0002479,2]
[394146373,1763322637898,-1000.0,0.0002479,2]
[394146374,1763322637908,-233.64497913,0.000248,2]
[394146375,1763322637919,-67495.9637593,0.000248,3]
[394146376,1763322637929,-1112.01198495,0.000248,3]
[394146377,1763322637939,-500.0,0.00024873,2]
[394146378,1763322637950,-500.0,0.00024873,2]
[394146379,1763322637959,-500.0,0.00024873,2]
[394146380,1763322637972,-466.69974,0.000249,2]
[394146381,1763322637981,-166.66,0.0002505,30]
[394146382,1763322637991,-300.0,0.00025064,2]
[394146383,1763322638001,-616.22593712,0.00025075,2]
[394146384,1763322638010,-1000.0,0.00025221,2]
[394146385,1763322638020,-1000.0,0.00025221,2]
[394146386,1763322638030,-500.0,0.00025221,2]
[394146387,1763322638039,-504.18700032,0.00025221,2]
[394146388,1763322638050,-500.0,0.00025232,2]
[394146389,1763322638059,-500.0,0.00025235,2]
[394146390,1763322638069,-508.73838685,0.00025235,2]
[394146391,1763322638079,-500.0,0.00025235,2]
[394146392,1763322638089,-500.0,0.00025235,2]
[394146393,1763322638100,-470.24249009,0.00025235,2]
[394146394,1763322638111,-166.67,0.00025333,2]
[394146395,1763322638121,-466.69975,0.000254,2]
[394146396,1763322638131,-502.51981297,0.00025421,2]
[394146397,1763322638141,-1000.0,0.00025421,2]
[394146398,1763322638151,-1000.0,0.00025421,2]
[394146399,1763322638160,-166.66,0.00025546,30]
[394146400,1763322638170,-1287.7,0.00025605,30]
[394146401,1763322638180,-159.65016984,0.00025768,2]
[394146402,1763322638190,-1500.0,0.00025768,2]
[394146403,1763322638199,-1000.0,0.00025783,2]
[394146404,1763322638209,-726.36441641,0.00025783,2]
[394146405,1763322638221,-1000.0,0.00025813,2]
[394146406,1763322638230,-466.69974,0.000259,2]
[394146407,1763322638239,-1500.0,0.00025968,2]
[394146408,1763322638249,-834.38895643,0.00025968,2]
[394146409,1763322638258,-166.66,0.00026042,30]
[394146410,1763322638267,-780.61,0.0002622,2]
[394146411,1763322638277,-500.0,0.00026229,2]
[394146412,1763322638286,-344.05605658,0.00026229,2]
[394146413,1763322638297,-173.27355861,0.00026229,2]
[394146414,1763322638307,-500.0,0.00026229,2]
[394146415,1763322638316,-500.0,0.00026229,2]
[394146416,1763322638326,-500.0,0.00026229,2]
[394146417,1763322638335,-571.99509139,0.00026229,2]
[394146418,1763322638345,-20158.49831415,0.0002623,2]
[394146419,1763322638355,-3447.73130244,0.00026252,2]
[394146420,1763322638365,-1010.16852584,0.00026316,2]
[394146421,1763322638375,-298.21916561,0.00026331,2]
[394146422,1763322638384,-466.69974,0.000264,2]
[394146423,1763322638394,-300.0,0.00026434,2]
[394146424,1763322638408,-500.0,0.00026516,2]
[394146425,1763322638417,-162.0,0.00026566,2]
[394146426,1763322638427,-162.0,0.00026566,2]
[394146427,1763322638436,-162.0,0.00026566,2]
[394146428,1763322638446,-162.0,0.00026566,2]
[394146429,1763322638456,-162.0,0.00026566,2]
[394146430,1763322638467,-162.0,0.00026566,2]
[394146431,1763322638477,-153.0,0.00026566,2]
[394146432,1763322638646,-153.0,0.00026566,2]
[394146433,1763322638657,-153.0,0.00026566,2]
[394146434,1763322638667,-153.0,0.00026566,2]
[394146435,1763322638676,-153.0,0.00026566,2]
[394146436,1763322638686,-153.0,0.00026566,2]
[394146437,1763322638695,-153.0,0.00026566,2]
[394146438,1763322638705,-153.0,0.00026566,2]
[394146439,1763322638715,-153.0,0.00026566,2]
[394146440,1763322638724,-248.0,0.00026567,2]
[394146441,1763322638734,-248.0,0.00026567,2]
[394146442,1763322638744,-248.0,0.00026567,2]
[394146443,1763322638755,-248.0,0.00026567,2]
[394146444,1763322638765,-248.0,0.00026567,2]
[394146445,1763322638774,-248.0,0.00026567,2]
[394146446,1763322638784,-248.0,0.00026567,2]
[394146447,1763322638793,-153.0,0.00026567,2]
[394146448,1763322638803,-153.0,0.00026567,2]
[394146449,1763322638812,-189.0,0.00026567,2]
[394146450,1763322638822,-189.0,0.00026567,2]
[394146451,1763322638831,-189.0,0.00026567,2]
[394146452,1763322638841,-189.0,0.00026567,2]
[394146453,1763322638851,-189.0,0.00026567,2]
[394146454,1763322638860,-189.0,0.00026567,2]
[394146455,1763322638870,-153.0,0.00026567,2]
[394146456,1763322638880,-153.0,0.00026567,2]
[394146457,1763322638890,-164.0,0.00026567,2]
[394146458,1763322638900,-164.0,0.00026567,2]
[394146459,1763322638910,-164.0,0.00026567,2]
[394146460,1763322638920,-164.0,0.00026567,2]
[394146461,1763322638929,-164.0,0.00026567,2]
[394146462,1763322638939,-164.0,0.00026567,2]
[394146463,1763322638948,-153.0,0.00026567,2]
[394146464,1763322638958,-153.0,0.00026567,2]
[394146465,1763322638969,-162.0,0.00026567,2]
[394146466,1763322638979,-162.0,0.00026567,2]
[394146467,1763322638988,-162.0,0.00026567,2]
[394146468,1763322638998,-162.0,0.00026567,2]
[394146469,1763322639008,-162.0,0.00026567,2]
[394146470,1763322639019,-162.0,0.00026567,2]
[394146471,1763322639029,-153.0,0.00026567,2]
[394146472,1763322639039,-153.0,0.00026567,2]
[394146473,1763322639048,-630.79,0.00026676,2]
[394146474,1763322639057,-466.69975,0.000269,2]
[394146475,1763322639067,-500.0,0.000269,9]
[394146476,1763322639078,-33747.9818796,0.00026935,3]
[394146477,1763322639088,-913.56016574,0.00026945,2]
[394146478,1763322639098,-158.71330448,0.00026968,2]
[394146479,1763322639108,-204518.0,0.000271,2]
[394146480,1763322639118,-23601.5693292,0.00027251,2]
[394146481,1763322639129,-849.632393,0.00027251,2]
[394146482,1763322639139,-150.0,0.00027273,2]
[394146483,1763322639148,-33747.9818796,0.00027275,3]
[394146484,1763322639158,-45194.4961391,0.00027285,2]
[394146485,1763322639168,-300.0,0.00027397,2]
[394146486,1763322639177,-1431.11,0.00027397,2]
[394146487,1763322639188,-718.722,0.00027493,2]
[394146488,1763322639198,-3430.0,0.00027493,2]
[394146489,1763322639207,-1348.318,0.00027493,2]
[394146491,1763322639217,-575.0,0.00027493,2]
[394146492,1763322639227,-821.0,0.00027493,2]
[394146493,1763322639237,-1599.0,0.00027493,2]
[394146494,1763322639246,-907.0,0.00027493,2]
[394146495,1763322639256,-814.0,0.00027493,2]
[394146497,1763322639267,-1275.0,0.00027493,2]
[394146498,1763322639277,-250.0,0.00027493,2]
[394146499,1763322639288,-560.0,0.00027493,2]
[394146500,1763322639298,-150.0,0.00027493,2]
[394146501,1763322639307,-150.0,0.00027493,2]
[394146502,1763322639318,-505.547,0.00027493,2]
[394146503,1763322639327,-150.0,0.00027493,2]
[394146504,1763322639336,-1604.0,0.00027493,2]
[394146505,1763322639346,-150.0,0.00027493,2]
[394146506,1763322639356,-1000.0,0.00027592,2]
[394146508,1763322639365,-500.0,0.00027721,5]
[394146509,1763322639374,-1432.1929251,0.00027728,2]
[394146510,1763322639384,-5518.0,0.000278,3]
[394146511,1763322639393,-250.0,0.00027821,5]
[394146512,1763322639406,-101243.945639,0.0002789,3]
[394146513,1763322639417,-106706.685292,0.0002789,3]
[394146515,1763322639430,-1000.0,0.000279,10]
[394146517,1763322639441,-255.11324493,0.00027903,2]
[394146519,1763322639451,-20158.49831415,0.00027914,2]
[394146520,1763322639460,-33747.9818796,0.00027948,3]
[394146521,1763322639470,-3447.73130244,0.00027958,2]
[394146522,1763322639481,-8000.0,0.00028,10]
[394146523,1763322639491,-26676.6713229,0.00028006,3]
[394146524,1763322639502,-172.35675476,0.00028041,2]
[394146525,1763322639518,-33747.9818796,0.00028111,3]
[394146526,1763322639527,-26676.6713229,0.00028111,3]
[394146527,1763322639537,-67495.9637593,0.00028121,3]
[394146528,1763322639547,-53353.3426458,0.00028121,3]
[394146529,1763322639557,-101243.945639,0.00028131,3]
[394146530,1763322639568,-106706.685292,0.00028131,3]
[394146531,1763322639578,-210593.1906751,0.00028141,2]
[394146532,1763322639588,-26676.6713229,0.00028143,3]
[394146533,1763322639599,-500.0,0.00028173,5]
[394146534,1763322639610,-500.0,0.00028173,5]
[394146535,1763322639621,-500.0,0.00028173,5]
[394146536,1763322639631,-500.0,0.00028173,5]
[394146537,1763322639641,-500.0,0.00028173,5]
[394146538,1763322639652,-500.0,0.00028173,5]
[394146539,1763322639662,-500.0,0.00028173,5]
[394146540,1763322639672,-164.00583255,0.00028173,5]
[394146541,1763322639682,-598.73,0.000282,7]
[394146542,1763322639693,-150.0,0.00028219,2]
[394146543,1763322639703,-505.52335219,0.00028269,5]
[394146544,1763322639714,-350.0,0.00028368,5]
[394146545,1763322639724,-1000.0,0.00028394,2]
[394146546,1763322639734,-5518.0,0.000285,5]
[394146547,1763322639744,-504.62385187,0.00028721,5]
[394146548,1763322639754,-503.8999643,0.00028721,5]
[394146549,1763322639764,-501.67772144,0.00028721,5]
[394146550,1763322639773,-474.82122033,0.00028721,5]
[394146551,1763322639784,-1000.0,0.00028721,5]
[394146552,1763322639794,-1000.0,0.00028721,5]
[394146553,1763322639803,-371.02254177,0.000289,2]
[394146554,1763322639814,-255.39,0.00028964,2]
[394146555,1763322639825,-2000.0,0.00029,2]
[394146556,1763322639835,-616.22593712,0.00029142,2]
[394146557,1763322639846,-67495.9637593,0.0002918,3]
[394146558,1763322639856,-53353.3426458,0.0002918,3]
[394146559,1763322639867,-482.23406646,0.00029268,5]
[394146560,1763322639877,-500.0,0.00029268,5]
[394146561,1763322639887,-913.56016574,0.00029344,2]
[394146562,1763322639897,-158.71330448,0.00029364,15]
[394146563,1763322639907,-600.0,0.00029456,2]
[394146565,1763322639917,-205.59,0.00029456,2]
[394146567,1763322639926,-33747.9818796,0.00029595,3]
[394146568,1763322639937,-26676.6713229,0.00029595,3]
[394146569,1763322639948,-20158.49831415,0.00029597,2]
[394146570,1763322639959,-3447.73130244,0.00029664,2]
[394146571,1763322639969,-33747.9818796,0.00029846,3]
[394146572,1763322639978,-26676.6713229,0.00029846,3]
[394146573,1763322639988,-23601.5693292,0.00029856,2]
[394146574,1763322639997,-849.632393,0.00029856,2]
[394146575,1763322640007,-598.73,0.000299,7]
[394146576,1763322640017,-1500.0,0.000299,10]
[394146577,1763322640028,-26676.6713229,0.00029915,3]
[394146578,1763322640038,-45194.4961391,0.00029925,2]
[394146579,1763322640048,-301.93623596,0.00029999,2]
[394146580,1763322640058,-276.09960154,0.00029999,2]
[394146582,1763322640067,-500.0,0.00029999,2]
[394146584,1763322640077,-527.31525221,0.00029999,2]
[394146586,1763322640086,-500.0,0.00029999,2]
[394146587,1763322640096,-500.0,0.00029999,2]
[394146588,1763322640105,-257.69947906,0.00029999,2]
[394146589,1763322640115,-500.0,0.00029999,2]
[394146590,1763322640125,-174.68,0.00030137,30]
[394146591,1763322640135,-2870.7005405,0.00030289,2]
[394146592,1763322640145,-150.0,0.00030399,20]
[394146593,1763322640158,-608.0,0.00030493,2]
[394146594,1763322640169,-3430.0,0.00030493,2]
[394146595,1763322640180,-1318.0,0.00030493,2]
[394146596,1763322640191,-575.0,0.00030493,2]
[394146597,1763322640201,-821.0,0.00030493,2]
[394146598,1763322640211,-1599.0,0.00030493,2]
[394146599,1763322640222,-907.0,0.00030493,2]
[394146600,1763322640233,-793.0,0.00030493,2]
[394146601,1763322640244,-1275.0,0.00030493,2]
[394146602,1763322640253,-1604.0,0.00030493,2]
[394146603,1763322640263,-2294.43,0.000306,14]
[394146604,1763322640274,-1287.7,0.00030651,30]
[394146605,1763322640283,-157.87,0.00030755,120]
[394146606,1763322640293,-1432.1929251,0.0003081,2]
[394146607,1763322640303,-1000.0,0.00030976,2]
[394146608,1763322640313,-2111.99,0.00031271,2]
[394146609,1763322640323,-20158.49831415,0.00031281,2]
[394146610,1763322640335,-3447.73130244,0.0003137,2]
[394146611,1763322640345,-384.76,0.00031507,120]
[394146612,1763322640356,-640.5398713,0.00031548,2]
[394146613,1763322640367,-174.68,0.00031556,30]
[394146614,1763322640378,-2393.381,0.0003159,2]
[394146615,1763322640389,-255.39,0.00031597,2]
[394146616,1763322640401,-106706.685292,0.00031626,3]
[394146617,1763322640414,-210593.1906751,0.00031636,2]
[394146618,1763322640424,-887.7,0.000317,2]
[394146619,1763322640435,-913.56016574,0.00031743,2]
[394146620,1763322640446,-158.71330448,0.00031759,15]
[394146621,1763322640456,-166.36857467,0.00032,120]
[394146622,1763322640465,-598.73,0.00032,30]
[394146623,1763322640475,-969.5,0.00032171,30]
[394146624,1763322640486,-600.0,0.00032235,2]